Cogmind - Beta 15 @@@ ROGUE MODE // 2025.05.29 @ 05:10:27 Player: CL-1C0 Result: Destroyed by 8R-AWN with 8R-AWN's Boregun Performance ------------- Evolutions (0) 0 Regions Visited (3) 600 Robots Destroyed (7) 35 Value Destroyed (243) 243 Prototype IDs (24) 480 Alien Tech Used (0) 0 Bonus (300) 300 TOTAL SCORE: 1658 Bonus ------- Aligned with FarCom 300 Cogmind --------- Core Integrity 0/250 Matter 229/300 Energy 160/160 System Corruption 3% Temperature Cool (50) Movement Treading (160) Location -10/Exiles Parts ------- > --- POWER (1) -------- Light Nuclear Core > --- PROPULSION (2) --- Light Treads Aluminum Leg > --- UTILITY (2) ------ Improved Heat Sink Small Storage Unit > --- WEAPON (2) ------- Improved Assault Rifle Improved Assault Rifle > --- INVENTORY (8) ---- Light Treads Aluminum Leg Medium Matter Pod (100) Medium Matter Pod (100) Improved Assault Rifle Improved Assault Rifle Peak State ------------ > --- POWER ------------ Light Nuclear Core > --- PROPULSION ------- Light Treads Light Treads > --- UTILITY ---------- Improved Heat Sink Small Storage Unit > --- WEAPON ----------- Improved Assault Rifle Improved Assault Rifle > --- INVENTORY -------- Nuclear Core Reinforced Deuterium Engine Reinforced Deuterium Engine YOLO Cannon [Rating: 18] Favorites ----------- Power Light Nuclear Core Engine Light Ion Engine Power Core Light Nuclear Core Propulsion Light Treads Treads Light Treads Leg Aluminum Leg Wheel Wheel Utility Small Storage Unit Device Improved Heat Sink Storage Small Storage Unit Weapon Improved Assault Rifle Energy Gun Small Laser Ballistic Gun Improved Assault Rifle Build | -11 -10 -10 -10 ------- Run | Yrd Mat Min Exi Slots Evolved . | . . . . Power . | . . . . Propulsion . | . . . . Utility . | . . . . Weapon . | . . . . Parts Attached 12 | . 4 5 3 Power 2 | . . 2 . Engine 1 | . . 1 . Core 1 | . . 1 . Reactor . | . . . . Propulsion 4 | . 2 1 1 Treads 2 | . 1 1 . Leg 1 | . . . 1 Wheel 1 | . 1 . . Hover . | . . . . Flight . | . . . . Utility 2 | . . 2 . Device 2 | . . 2 . Storage . | . . . . Processor . | . . . . Hackware . | . . . . Protection . | . . . . Artifact . | . . . . Weapon 4 | . 2 . 2 Energy Gun . | . . . . Energy Cannon . | . . . . Ballistic Gun 4 | . 2 . 2 Ballistic Cannon . | . . . . Launcher . | . . . . Special Weapon . | . . . . Impact Weapon . | . . . . Slashing Weapon . | . . . . Piercing Weapon . | . . . . Special Melee Weapon . | . . . . Unidentified Prototypes 1 | . 1 . . Parts Lost 5 | . 3 . 2 Power 1 | . 1 . . Propulsion 2 | . 2 . . Utility . | . . . . Weapon 2 | . . . 2 Highest Loss Streak 2 | . 2 . 1 To Critical Strikes 1 | . . . 1 Average Backups 5 | . 6 6 5 Power 1 | . 1 . 2 Propulsion 1 | . 3 1 . Utility . | . . . . Weapon 2 | . 1 4 2 Tool/Special . | . . . . Unused Backups 16 | . 7 . 9 Power 4 | . 1 . 3 Propulsion 3 | . 2 . 1 Utility 3 | . 1 . 2 Weapon 6 | . 3 . 3 Tool/Special . | . . . . Average Slot Usage (%) 96 | . 79 97 99 Engine 3 | . 10 8 . Core 9 | . . 4 14 Treads 23 | . 1 28 26 Leg 3 | . 20 . . Device 11 | . . 12 14 Storage 14 | . 14 14 14 Energy Gun 2 | . 17 . . Ballistic Gun 25 | . 9 28 28 Peak Build Rating 18 | . 11 16 18 Average Rating 15 | . 7 14 17 On Entrance 9 | 6 6 9 16 Naked Turns . | . . . . Heaviest Build 17 | 10 14 17 17 Greatest Support 40 | 20 20 40 40 Greatest Overweight (x) 3 | . 3 . . Average Overweight (x) . | . . . . Largest Inventory Capacity 8 | . 8 8 8 Average Capacity 8 | . 8 8 8 Most Carried 8 | . 8 8 8 Average Carried 6 | . 6 6 5 Final Capacity 8 | 8 8 8 8 Final Carried 8 | 6 7 8 6 Class Distribution -------------------- 100% | Mutant Dominant Class ---------------- Mutant | -10/Materials Mutant | -10/Mines Mutant | -10/Exiles Resources | -11 -10 -10 -10 ----------- Run | Yrd Mat Min Exi Matter Collected 439 | 200 . 169 70 Remotely . | . . . . Salvage Created 325 | . . 272 53 Parts 17 | . . 14 3 Haulers Intercepted . | . . . . Recyclers Shooed . | . . . . Parts Field Recycled . | . . . . Retrieved Matter . | . . . . Parts Self-Destructed . | . . . . Prevented . | . . . . Kills | -11 -10 -10 -10 ------- Run | Yrd Mat Min Exi Combat Hostiles Destroyed 7 | . . 6 1 Guns 7 | . . 6 1 Classes Destroyed 2 | . . 1 1 Grunt 7 | . . 6 1 Assembled 1 | . . . 1 Best Kill Streak 2 | . . 2 1 Combat Bots Only 2 | . . 2 1 Max Kills in Single Turn 1 | . . 1 1 Gunslinging . | . . . . Exploded . | . . . . Melee . | . . . . Uniques/NPCs Destroyed . | . . . . Combat | -11 -10 -10 -10 -------- Run | Yrd Mat Min Exi Hostile Shots Fired 124 | . 74 30 20 Missed 37 | . 27 6 4 Hits 87 | . 47 24 16 Melee 2 | . . . 2 Projectile 85 | . 47 24 14 Critical Strikes 8 | . . . 8 Damage Taken 1144 | . 562 304 278 Core 263 | . 112 41 110 Absorbed by Shields . | . . . . Core Remaining (%) 100 | 100 . . . Volleys Fired 37 | . 2 19 16 Largest 2 | . 2 2 2 Hottest 80 | . 80 46 46 Shots Fired 69 | . 4 38 27 Gun 69 | . 4 38 27 Cannon . | . . . . Launcher . | . . . . Special . | . . . . Kinetic 65 | . . 38 27 Thermal 4 | . 4 . . Explosive . | . . . . Electromagnetic . | . . . . Robot Hit Streak 17 | . 1 17 6 Robot Miss Streak 3 | . 3 1 3 Penetration Max . | . . . . Secondary Targets 1 | . . 1 . Max Gunslinging Chain 1 | . . 1 . Shots Hit Robots 49 | . 1 31 17 Core Hits 19 | . 1 11 7 Critical Kills . | . . . . Critical Parts Destroyed . | . . . . Critical Strikes . | . . . . Melee Attacks . | . . . . Impact . | . . . . Slashing . | . . . . Piercing . | . . . . Sneak Attacks . | . . . . Combat Hostiles . | . . . . Follow-up Attacks . | . . . . Damage Inflicted 753 | . 19 468 266 Guns 745 | . 11 468 266 Cannons . | . . . . Explosions . | . . . . Melee . | . . . . Ramming 8 | . 8 . . Kinetic 734 | . . 468 266 Thermal 11 | . 11 . . Explosive . | . . . . Electromagnetic . | . . . . Impact . | . . . . Slashing . | . . . . Piercing . | . . . . Highest Corruption 3 | . . . 3 Average Corruption 3 | . . . 3 Corruption Purged . | . . . . Corruption Blocked . | . . . . Effects 3 | . . . 3 Heat Flow Errors 1 | . . . 1 Parts Rejected 1 | . . . 1 Weapon Failures 1 | . . . 1 Overload Shots . | . . . . Overflow Damage . | . . . . Projectiles . | . . . . Explosions . | . . . . Melee . | . . . . Knockbacks . | . . . . Impact . | . . . . Kinetic . | . . . . Secondary . | . . . . Self-Inflicted Damage . | . . . . Shots . | . . . . Rammed . | . . . . Targets Rammed 2 | . 2 . . Kicked 2 | . 2 . . Crushed . | . . . . Highest Temperature 168 | . 36 10 168 Average Temperature 37 | . 18 5 104 Received Heat Transfer 477 | . 306 171 . Siege Activations . | . . . . Martial Activations . | . . . . Shielding Activations . | . . . . Robots Disrupted . | . . . . Combat Hostiles . | . . . . Robots Corrupted . | . . . . Combat Hostiles . | . . . . Parts Fried . | . . . . Impact Corruptions . | . . . . Robots Melted . | . . . . Combat Hostiles . | . . . . Parts Melted . | . . . . Heat Transferred 25 | . 25 . . Parts Sabotaged . | . . . . Parts Stolen . | . . . . Parts Stripped . | . . . . Power Chain Reactions . | . . . . Alert | -11 -10 -10 -10 ------- Run | Yrd Mat Min Exi Maximum Alert Level . | . . . . Low Security (%) 100 | . 100 100 . Level 1 . | . . . . Level 2 . | . . . . Level 3 . | . . . . Level 4 . | . . . . Level 5 . | . . . . High Security . | . . . . Max Security . | . . . . Peak Influence 65 | . . 65 . Initial . | . . . . Average 26 | . . 39 . Influence Increases 165 | . . 165 . Destroy 0b10 Robot/C 120 | . . 120 . Destroy Leader 30 | . . 30 . Lose Combat Pursuer 15 | . . 15 . Influence Decreases 165 | . . 150 15 Entered New Map 15 | . . . 15 Time Decay 150 | . . 150 . Squads Dispatched 2 | . 2 . . Investigation 1 | . 1 . . Extermination . | . . . . Reinforcement 1 | . 1 . . Assault . | . . . . Garrison . | . . . . Intercept . | . . . . Searches Triggered . | . . . . Construction Impeded . | . . . . Haulers Reinforced . | . . . . Active Scanning Responses . | . . . . Cargo Convoy Interrupts . | . . . . Stealth | -11 -10 -10 -10 --------- Run | Yrd Mat Min Exi Distress Signals . | . . . . Communications Jammed . | . . . . Distress Signals . | . . . . Times Spotted 23 | . 9 7 7 Peak Tracking Total 10 | . 8 2 10 Tactical Retreats 2 | . . 1 1 Traps | -11 -10 -10 -10 ------- Run | Yrd Mat Min Exi Traps Triggered 1 | . 1 . . Indirectly . | . . . . Trap Hack Attempts . | . . . . Triggered . | . . . . Disarmed . | . . . . Reprogrammed . | . . . . Reused . | . . . . Traps Extracted . | . . . . Installed . | . . . . Triggered . | . . . . Machines | -11 -10 -10 -10 ---------- Run | Yrd Mat Min Exi Machines Disabled 3 | . . . 3 Max in Single Turn 1 | . . . 1 Machines Repaired . | . . . . Machines Dismantled . | . . . . Machines Sabotaged . | . . . . Overloaded Fab Kills . | . . . . Hacking | -11 -10 -10 -10 --------- Run | Yrd Mat Min Exi Machines Accessed 2 | . . . 2 Terminals . | . . . . Fabricators . | . . . . Repair Stations . | . . . . Recycling Units . | . . . . Scanalyzers . | . . . . Garrison Access . | . . . . Total Hacks 2 | . . . 2 Successful 2 | . . . 2 Failed . | . . . . Catastrophic . | . . . . Database Lockouts . | . . . . Manual 1 | . . . 1 Terminals . | . . . . Fabricators . | . . . . Repair Stations . | . . . . Recycling Units . | . . . . Scanalyzers . | . . . . Garrison Access . | . . . . Terminal Hacks 2 | . . . 2 Record 1 | . . . 1 Proto ID Catalog 1 | . . . 1 Fabricator Hacks . | . . . . Repair Station Hacks . | . . . . Recycling Unit Hacks . | . . . . Scanalyzer . | . . . . Garrison Access Hacks . | . . . . Unauthorized Hacks . | . . . . Terminals . | . . . . Fabricators . | . . . . Repair Stations . | . . . . Recycling Units . | . . . . Scanalyzers . | . . . . Garrison Access . | . . . . Data Cores Recovered . | . . . . Used . | . . . . Hacking Detections . | . . . . Full Trace Events . | . . . . Feedback Events . | . . . . Feedback Blocked . | . . . . Robot Schematics Acquired . | . . . . Robots Built . | . . . . Authchips . | . . . . Time . | . . . . Total Robot Build Rating . | . . . . Part Schematics Acquired . | . . . . Parts Built . | . . . . Authchips . | . . . . Time . | . . . . Total Part Build Rating . | . . . . Parts Repaired . | . . . . Time . | . . . . Parts Recycled . | . . . . Recycled Matter . | . . . . Retrieved Matter . | . . . . Retrieved Components . | . . . . Parts Scanalyzed . | . . . . Part Schematics Acquired . | . . . . Parts Damaged . | . . . . Bothacking | -11 -10 -10 -10 ------------ Run | Yrd Mat Min Exi Used RIF Installer . | . . . . Robots Hacked . | . . . . Non-combat . | . . . . Combat . | . . . . Robot Hacks Applied . | . . . . Relay Couplers Released . | . . . . Fabnet Peak Effective % . | . . . . Robots Rewired . | . . . . Allies Hacked . | . . . . Hacks Repelled . | . . . . Allies | -11 -10 -10 -10 -------- Run | Yrd Mat Min Exi Total Allies 3 | . . 3 . Largest Group 3 | . . 3 3 Highest-Rated Group 40 | . . 40 40 Highest-Rated Ally 16 | . . 16 16 Total Orders 1 | . . . 1 STAY 1 | . . . 1 Ally Attacks 12 | . . . 12 Total Damage 156 | . . . 156 Kills 4 | . . . 4 Allies Corrupted . | . . . . Allies Melted . | . . . . Intel | -11 -10 -10 -10 ------- Run | Yrd Mat Min Exi Active Infowar (turns) . | . . . . Robot Analysis Total . | . . . . Derelict Logs Recovered 2 | . . 2 . Drone Launches . | . . . . Drone Recoveries . | . . . . Exploration | -11 -10 -10 -10 ------------- Run | Yrd Mat Min Exi Turns Passed 1131 | . 147 318 666 Spaces Moved 624 | 1 117 141 365 Core 1 | . 1 . . Treads 507 | . 1 141 365 Legs 67 | 1 66 . . Wheels 49 | . 49 . . Hover . | . . . . Flight . | . . . . Fastest Speed 80 | 120 80 160 160 Average Speed 150 | 120 110 160 160 Slowest Speed 200 | 120 200 160 160 Overloaded Moves . | . . . . Propulsion Burnouts . | . . . . Robots Hopped . | . . . . Potential Cave-ins . | . . . . Cave-ins Triggered . | . . . . Exploration Rate (%) 35 | 1 39 36 65 Regions Visited 3 Branch Regions 2 Pre-discovered Areas 2 | . . 1 1 Known Exits Taken . | . . . . Unknown Exits Taken 3 | 1 1 1 . Scrap Searched . | . . . . Spaces Dug . | . . . . Terrain Destroyed . | . . . . Melee . | . . . . Projectile . | . . . . AOE . | . . . . Terrain Rammed . | . . . . Walls Destroyed . | . . . . Machines Disabled . | . . . . Actions | -11 -10 -10 -10 --------- Run | Yrd Mat Min Exi Total 752 | . 132 194 426 Wait 47 | . . 29 18 Move 621 | . 116 140 365 Hop . | . . . . Pick Up 17 | . 4 1 12 Fast Attach 4 | . 2 1 1 Attach 5 | . 1 2 2 Detach . | . . . . Swap 3 | . 1 2 . Drop 16 | . 4 . 12 Fire 37 | . 2 19 16 Melee . | . . . . Ram . | . . . . Kick 2 | . 2 . . Crush . | . . . . Escape Stasis . | . . . . Rewire . | . . . . Trap . | . . . . Miscellaneous . | . . . . Route ------- -11/Scrapyard -10/Materials (discovered 2 exits: [*Mat] / [*Min]) -10/Mines (discovered 3 exits: [*Mat] / *Exi / [*Sub]) -10/Exiles History --------- Turn | Location | Event 1 | -11/Scrapyard | Discovered new exit (range 0) 1 | -11/Scrapyard | Entered Materials 83 | -10/Materials | Discovered new exit (range 10) 137 | -10/Materials | Discovered new exit (range 11) 148 | -10/Materials | Entered Mines 166 | -10/Mines | Met a Derelict bent on vengeance 214 | -10/Mines | Core integrity fell below 50% 282 | -10/Mines | Discovered new exit (range 13) 307 | -10/Mines | Learned 2 Materials zone layouts 313 | -10/Mines | Build established: Mutant 376 | -10/Mines | Discovered new exit (range 11) 402 | -10/Mines | Assisted by bots powering up and referring to "LRC-V3" 424 | -10/Mines | Learned location of Storage (-8) 448 | -10/Mines | Deemed a non-threat by the Exiles lab entrance 448 | -10/Mines | Discovered new exit (range 5) 466 | -10/Mines | Entered Exiles 466 | -10/Exiles | Accompanied by 3 allies 514 | -10/Exiles | Met 8R-AWN 541 | -10/Exiles | Met EX-HEX 604 | -10/Exiles | Met EX-DEC 617 | -10/Exiles | Learned location of Zion (-7) 743 | -10/Exiles | Met EX-BIN 766 | -10/Exiles | Aligned with FarCom system 767 | -10/Exiles | Given EX-Vault access code 804 | -10/Exiles | Opened EX-Vault 812 | -10/Exiles | Found YOLO Cannon 848 | -10/Exiles | Warned to stay clear of 0b10 Research branches 1027 | -10/Exiles | Attacked by the Exiles 1108 | -10/Exiles | Lost 3 allies 1122 | -10/Exiles | Core integrity fell below 20% 1132 | -10/Exiles | Destroyed by 8R-AWN with 8R-AWN's Boregun Last Messages --------------- 01123_ Penetrated by HV Slug. 01123_ Critical hit (Destroy). 01123_ Imp. Assault Rifle destroyed. 01123_ HV Slug penetrates Earth. 01125_ System corrupted: Heat flow error (+193). 01125_ System corrupted: Imp. Assault Rifle jammed. 01125_ Penetrated by HV Slug. 01125_ HV Slug penetrates Earth. 01125_ HV Slug penetrates Machine. 01128_ Penetrated by HV Slug. 01128_ HV Slug penetrates Earth. 01128_ Penetrated by HV Slug. 01128_ HV Slug penetrates Earth. 01130_ HV Slug penetrates Machine. 01130_ HV Slug penetrates Wall. 01130_ Penetrated by HV Slug. 01130_ HV Slug penetrates Earth. 01132_ Penetrated by HV Slug. 01132_ HV Slug penetrates Earth. 01132_ Penetrated by HV Slug. Map ----- +----------------------------------------------------+ | ?????????????????????????????????????????????????? | | ?????????????????????????????????????????????????? | | ?????????????????????????????????????????????????? | | ?????????????????????????????????????????????????? | | ?????????????????????????????????????????????????? | | ?????????????????????????????????????????????????? | | ?????????????????????????????????????????????????? | | ?????????????????????????????????????????????????? | | ?????????????????????????????????????????????????? | | ?????????????????????????????????????????????????? | | ???????????????????????????????????????????????### | | ???????????????????????????????????????????????""" | | ??????????????????????????????????????????????"""" | | ?????????????????????????????????????????????#""X" | | ?????????????????????????????????????????????#" | | ?????????????????????????????????????????????#" | | ?????????????????????????????????????????????#"""" | | ?????????????????????????????????????????????##"## | | ?????????????????????????????????????????????????? | | ?????????????????????????????????????????????????? | | ?????????????????????????????????????????????????? | | ????????????????????#######??????????????????????? | | ????????#???????????#!!! "#??????????????????????? | | ??????? #?????????#%[ ]"#??????????????????????? | | ??????? ???????# !g #??????????????????????? | | ??????? ?????##[ @#????????????#####?????? | | ?????? ##??#"= " ;#??????????? """#????? | | ?????? ## * # #??????????" """#????? | | ??????# #""%% #### #????????"" #????? | | ?????????# ![ #???##???????#"" #????? | | ???????????## % ##???????????#"" "#????? | | ????????????### #???????????? ""?????? | | ?????????????#" %###???????????" "??????? | | ????????????""" ##??????????# #??????? | | ???????? "###" ######???### ###?#### | | ???????? "??##" "" #####X# #"###""" | | ???????? ????#" """""" | | ????????!""""""##????#"# "" """ | | ?????????######??????#### * " " | | ????????????????????????### | | ??????????????????????????### | | ????????????????????????????## | | ?????????????????????????????## | | ??????????????????????????????##" | | ???????????????????????????????#""" | | ??????????????????????????????##" | | ??????????????????????????????#"" ""# | | ??????????????????????????????#""" """## | | ??????????????????????????????""" """##? | | ??????????????????????????????""" ""#?? | +----------------------------------------------------+ Best States ------------- Heat Dissipation 39 Energy Generation 14 Energy Capacity 160 Matter Stores 300 Matter Capacity 300 Sight Range 16 Terrain Scan Density 10 Evasion (%) 55 Recoil Reduction 2 Item Schematics ----------------- None Robot Schematics ------------------ None Fabricated ------------ Nothing Repaired ---------- Nothing Alien Tech Used ----------------- None Achievements -------------- None Challenges ------------ None Game ------ Seed CoolingShiftFacilitator Manual? 0 Play Time 00:07:48 Cumulative 498.7 hours Start 2025.05.29 @ 05:03:22 End 2025.05.29 @ 05:10:27 Sessions 1 Manual Loads 0 Difficulty Rogue Special Mode None Game No. 545 Rogue 545 Adventurer 0 Explorer 0 Win Type - Total 14 Types 9/0/4/1/0/0/0/0/0/0 Lore% 75 Gallery% 79 Achievement% 82 Wizard Run 0 Options --------- Layout 0 ASCII 0 Keyboard 0 Movement Numpad Keybinds 0 Fullscreen 1 Font 18/SmallcapsGlow Map View 76x50 Zoom Use 0% Tactical HUD 1 Map Filters NONE Filters NONE Steam 1 RUN: e51f0b51-ae3e-484b-91d9-8488abd7f885